fUST/lending_fUST_20250923
["ID","MTS","AMOUNT","RATE_DAILY","PERIOD"]
[387150454,1758594647582,-153.0,0.00021918,2]
[387150456,1758594647591,-153.0,0.00021918,2]
[387150458,1758594647601,-153.0,0.00021918,2]
[387150460,1758594647611,-153.0,0.00021918,2]
[387150462,1758594647621,-153.0,0.00021918,2]
[387150464,1758594647631,-153.0,0.00021918,2]
[387150466,1758594647644,-153.0,0.00021918,2]
[387150468,1758594647653,-153.0,0.00021918,2]
[387150470,1758594647662,-153.0,0.00021918,2]
[387150472,1758594647672,-153.0,0.00021918,2]
[387150474,1758594647683,-153.0,0.00021918,2]
[387150476,1758594647691,-153.0,0.00021918,2]
[387150478,1758594647700,-153.0,0.00021918,2]
[387150480,1758594647712,-153.0,0.00021918,2]
[387150482,1758594647721,-153.0,0.00021918,2]
[387150484,1758594647731,-153.0,0.00021918,2]
[387150486,1758594647740,-153.0,0.00021918,2]
[387150488,1758594647749,-153.0,0.00021918,2]
[387150490,1758594647758,-166.66053576,0.00021938,2]
[387150492,1758594647767,-1171.02,0.00021978,2]
[387150494,1758594647777,-8132.41,0.0002198,10]
[387150496,1758594647786,-1628.06,0.00022,7]
[387150498,1758594647795,-3724.67702589,0.00022044,2]
[387150500,1758594647804,-727.87,0.00022091,2]
[387150501,1758594647813,-23991.36237989,0.00022183,2]
[387150503,1758594647822,-565.57,0.00022191,2]
[387150505,1758594647831,-160.0,0.00022308,3]
[387150507,1758594647842,-727.87,0.00022365,2]
[387150509,1758594647851,-565.57,0.00022465,2]
[387150511,1758594647860,-727.87,0.00022639,2]
[387150513,1758594647869,-565.57,0.00022739,2]
[387150515,1758594647878,-1000.0,0.000228,4]
[387150517,1758594647887,-666.66666667,0.00022857,2]
[387150519,1758594647897,-666.66666667,0.00022857,2]
[387150521,1758594647905,-160.0,0.00022891,4]
[387150523,1758594647914,-727.87,0.00022913,2]
[387150524,1758594647924,-248.0,0.00022941,2]
[387150526,1758594647933,-406.44880864,0.00022971,2]
[387150528,1758594647942,-248.0,0.00022971,2]
[387150530,1758594647951,-248.0,0.00022975,2]
[387150532,1758594647960,-248.0,0.00022993,2]
[387150534,1758594647969,-340.62302351,0.00023004,2]
[387150536,1758594647978,-565.57,0.00023013,2]
[387150538,1758594647987,-130.78050304,0.00023061,2]
[387154341,1758594901326,1575.4,0.00027,120]
[387154363,1758595498940,-417.15472785,0.00020652,10]
[387154364,1758595498960,-582.84527215,0.00020652,10]
[387154366,1758595649838,8264.61458068,0.00029121,60]
[387154410,1758595831945,-189.1490779,0.00019392,2]
[387154412,1758595831956,-210.55647144,0.00019898,2]
[387154644,1758595837908,-284.3252907,0.00019898,2]
[387154646,1758595837918,-3128.12522317,0.000199,2]
[387154648,1758595837928,-609.03,0.00019998,2]
[387154650,1758595837938,-570.98,0.00019998,2]
[387154652,1758595837948,-160.42,0.00019998,2]
[387154654,1758595837959,-526.13391795,0.00019998,2]
[387154656,1758595837970,-480.0,0.00019998,2]
[387154658,1758595837981,-489.45141032,0.00019998,2]
[387154660,1758595837992,-480.0,0.00019998,2]
[387154663,1758595838004,-499.2870407,0.00019998,2]
[387154665,1758595838016,-810.7318144,0.00020359,2]
[387154667,1758595838026,-299.91959951,0.00020446,2]
[387154669,1758595838037,-480.0,0.00020446,2]
[387154671,1758595838048,-480.0,0.00020446,2]
[387154673,1758595838059,-444.53454312,0.00020446,2]
[387154676,1758595838069,-480.0,0.00020446,2]
[387154678,1758595838079,-585.40134074,0.00020446,2]
[387154680,1758595838090,-480.0,0.00020446,2]
[387154682,1758595838101,-480.0,0.00020446,2]
[387154684,1758595838112,-480.0,0.00020446,2]
[387154686,1758595838123,-480.0,0.00020446,2]
[387154688,1758595838135,-480.0,0.00020446,2]
[387154691,1758595838148,-480.0,0.00020446,2]
[387154693,1758595838159,-480.0,0.00020446,2]
[387154695,1758595838170,-480.0,0.00020446,2]
[387154697,1758595838181,-283.06254368,0.00020446,2]
[387154699,1758595838195,-237.45331726,0.00020446,2]
[387154700,1758595838204,-242.54668274,0.00020446,2]
[387155050,1758595842985,-187.52401966,0.00020446,2]
[387155051,1758595842996,-573.04,0.00020446,2]
[387155052,1758595843006,-480.0,0.0002065,2]
[387155053,1758595843017,-480.0,0.0002065,2]
[387155054,1758595843027,-500.74258013,0.0002065,2]
[387155055,1758595843037,-549.87677757,0.0002065,2]
[387155056,1758595843048,-542.12283561,0.0002065,2]
[387155057,1758595843058,-480.0,0.0002065,2]
[387155058,1758595843068,-480.0,0.00020651,2]
[387155059,1758595843079,-480.0,0.00020651,2]
[387155060,1758595843089,-480.0,0.00020651,2]
[387155061,1758595843099,-484.58067702,0.00020651,2]
[387155062,1758595843109,-157.882658,0.00020652,2]
[387155063,1758595843119,-417.15472785,0.00020652,10]
[387155064,1758595843129,-151.0,0.00020652,2]
[387155065,1758595843140,-151.0,0.00020652,2]
[387155066,1758595843150,-10672.28,0.00020652,10]
[387155067,1758595843161,-8893.56,0.00020652,10]
[387155068,1758595843171,-7411.3,0.00020652,10]
[387155069,1758595843181,-3219.6900122,0.00020652,10]
[387155326,1758595845956,-181.37492011,0.00020661,2]
[387155328,1758595845968,-241.37370789,0.00020662,2]
[387155334,1758595846010,-1497.25668317,0.00020662,2]
[387155488,1758596245931,1309.0,0.0002912,120]
[387155519,1758596563236,154.0,0.00024,120]
[387155520,1758596564651,154.0,0.000258,120]
[387155524,1758596758908,300.0,0.00027397,120]
[387155531,1758597032261,-448.78228443,0.000199,2]
[387155532,1758597032392,-902.86068771,0.000199,2]
[387155533,1758597032405,-24.40340099,0.000199,2]
[387155535,1758597032415,-476.2188728,0.00020446,2]
[387155536,1758597032426,-300.0,0.0002055,2]
[387155537,1758597032438,-300.0,0.0002055,2]
[387155539,1758597032447,-285.0,0.0002055,2]
[387155540,1758597032458,-177.19955858,0.00020551,2]
[387155541,1758597032470,-302.80044142,0.00020551,2]
[387155542,1758597032480,-480.0,0.00020551,2]
[387155543,1758597032490,-497.33718839,0.00020551,2]
[387155544,1758597032499,-486.26931193,0.00020551,2]
[387155545,1758597032509,-486.75378353,0.00020551,2]
[387155546,1758597032519,-497.99476175,0.00020551,2]
[387155547,1758597032528,-480.0,0.00020551,2]
[387155548,1758597032537,-480.0,0.00020551,2]
[387155549,1758597032547,-480.0,0.00020551,2]
[387155550,1758597032556,-480.0,0.00020551,2]
[387155551,1758597032566,-480.0,0.00020551,2]
[387155552,1758597032577,-480.0,0.00020551,2]
[387155553,1758597032587,-480.0,0.00020551,2]
[387155554,1758597032597,-491.31287881,0.00020551,2]
[387155555,1758597032611,-26.79991636,0.00020551,2]
[387155556,1758597032646,-693.41008364,0.00020551,2]
[387155557,1758597032657,-343.17781979,0.00020551,2]
[387155623,1758597037997,-218.88635259,0.00020551,2]
[387155625,1758597038007,-346.35,0.00020551,2]
[387155627,1758597038016,-345.19571723,0.00020551,2]
[387155631,1758597038050,-134.80428277,0.00020551,2]
[387155633,1758597038059,-480.0,0.00020551,2]
[387155635,1758597038068,-492.43703492,0.00020551,2]
[387155637,1758597038077,-219.92297024,0.00020552,3]
[387155646,1758597038156,-237.99702976,0.00020552,3]
[387155648,1758597038166,-417.15472785,0.00020552,10]
[387155650,1758597038176,-244.65,0.0002056,2]
[387155652,1758597038185,-138.77334371,0.0002056,2]
[387155655,1758597038197,-341.22665629,0.0002056,2]
[387155657,1758597038207,-480.0,0.0002056,2]
[387155658,1758597038217,-62.89976741,0.0002056,2]
[387155660,1758597038228,-417.10023259,0.0002056,2]
[387155662,1758597038237,-480.0,0.0002056,2]
[387155664,1758597038247,-480.0,0.0002056,2]
[387155666,1758597038257,-480.0,0.0002056,2]
[387155668,1758597038267,-480.0,0.0002056,2]
[387155670,1758597038276,-480.0,0.0002056,2]
[387155671,1758597038285,-489.88099086,0.0002056,2]
[387155673,1758597038295,-480.0,0.0002056,2]
[387155675,1758597038304,-480.0,0.0002056,2]
[387155677,1758597038314,-480.0,0.0002056,2]
[387155679,1758597038323,-599.71,0.0002056,2]
[387155681,1758597038333,-480.0,0.00020561,2]
[387155683,1758597038342,-480.0,0.00020561,2]
[387155685,1758597038352,-480.0,0.00020561,2]
[387155687,1758597038360,-480.0,0.00020561,2]
[387155689,1758597038370,-952.95,0.00020561,2]
[387155691,1758597038380,-480.0,0.00020561,2]
[387155693,1758597038389,-285.55,0.00020561,2]
[387155695,1758597038398,-480.0,0.00020561,2]
[387155697,1758597038408,-4083.81592715,0.00020562,2]
[387155808,1758597040068,-480.0,0.00020552,10]
[387155820,1758597040177,-5193.22,0.00020552,10]
[387155822,1758597040187,-103096.4696837,0.00020562,2]
[387156377,1758597045828,-480.0,0.00020551,2]
[387156379,1758597045838,-2495.37490789,0.00020562,2]
[387156390,1758597045943,-862.64281072,0.00020562,2]
[387156397,1758597045998,-26766.19204229,0.00020562,2]
[387156398,1758597046009,-500.0,0.00020562,2]
[387156400,1758597046018,-151.0,0.00020562,2]
[387156402,1758597046028,-159.207816,0.00020562,2]
[387156404,1758597046037,-174.60319117,0.00020573,2]
[387156406,1758597046046,-580.75563031,0.0002065,2]
[387156408,1758597046056,-480.0,0.0002065,2]
[387156410,1758597046066,-179.79121839,0.0002065,2]
[387156412,1758597046075,-480.0,0.00020651,2]
[387156414,1758597046084,-480.0,0.00020825,2]
[387156416,1758597046093,-480.0,0.00020825,2]
[387156418,1758597046102,-480.0,0.00020825,2]
[387156421,1758597046111,-480.0,0.00020825,2]
[387156424,1758597046120,-720.21,0.00020825,2]
[387156427,1758597046130,-480.0,0.00020825,2]
[387156430,1758597046138,-480.0,0.00020825,2]
[387156433,1758597046148,-156.2,0.00020834,2]
[387156436,1758597046157,-480.0,0.00020834,2]
[387156439,1758597046166,-487.65,0.00020834,2]
[387156442,1758597046175,-354.9443862,0.00020834,2]
[387156445,1758597046184,-480.0,0.00020834,2]
[387156447,1758597046193,-151.0,0.00020834,2]
[387156449,1758597046202,-284.49394521,0.00020834,2]
[387156451,1758597046212,-155.74768376,0.00020834,2]
[387156452,1758597046221,-589.46,0.00020834,2]
[387156454,1758597046230,-480.0,0.00020834,2]
[387156456,1758597046239,-480.0,0.00020835,2]
[387156458,1758597046249,-952.95,0.00020835,2]
[387156460,1758597046258,-355.33,0.00020835,2]
[387156462,1758597046267,-295.7993993,0.00020836,2]
[387156464,1758597046276,-978.0,0.00020915,2]
[387156466,1758597046286,-682.84707041,0.00020915,2]
[387156469,1758597046301,-1476.15292959,0.00020915,2]
[387156471,1758597046310,-635.0,0.00020915,2]
[387156473,1758597046319,-151.0,0.00020915,2]
[387156475,1758597046329,-151.0,0.00020915,2]
[387156477,1758597046338,-151.0,0.00020915,2]
[387156479,1758597046347,-151.0,0.00020915,2]
[387156481,1758597046356,-151.0,0.00020915,2]
[387156483,1758597046365,-171.453197,0.00020915,2]
[387156485,1758597046375,-151.0,0.00020915,2]
[387156487,1758597046384,-151.0,0.00020915,2]
[387156489,1758597046393,-151.0,0.00020915,2]
[387156491,1758597046402,-151.0,0.00020915,2]
[387156493,1758597046411,-151.0,0.00020915,2]
[387156495,1758597046421,-151.0,0.00020915,2]
[387156497,1758597046430,-151.0,0.00020915,2]
[387156499,1758597046439,-193.848164,0.00020915,2]
[387156501,1758597046449,-151.0,0.00020924,2]
[387156503,1758597046458,-151.0,0.00020924,2]
[387156505,1758597046468,-151.0,0.00020924,2]
[387156507,1758597046477,-158.577137,0.00020924,2]
[387156509,1758597046486,-1376.04637307,0.00020972,2]
[387156511,1758597046495,-2691.25081494,0.00021,7]
[387156513,1758597046507,-1635.31156886,0.00021,7]
[387156515,1758597046516,-159.555311,0.00021,2]
[387156517,1758597046525,-157.653226,0.00021,2]
[387156519,1758597046535,-410.0,0.00021053,2]
[387156521,1758597046544,-417.975,0.00021053,2]
[387156523,1758597046553,-480.0,0.00021099,2]
[387156525,1758597046562,-480.0,0.00021099,2]
[387156527,1758597046571,-480.0,0.00021099,2]
[387156529,1758597046580,-513.55,0.00021099,2]
[387156531,1758597046589,-720.21,0.00021099,2]
[387156533,1758597046599,-480.0,0.00021099,2]
[387156535,1758597046608,-480.0,0.00021099,2]
[387156537,1758597046618,-151.0,0.00021108,2]
[387156538,1758597046627,-285.51248087,0.00021108,2]
[387156540,1758597046636,-480.0,0.00021108,2]
[387156542,1758597046646,-2408.0,0.00021108,2]
[387156544,1758597046655,-480.0,0.00021108,2]
[387156547,1758597046666,-503.24,0.00021109,2]
[387156549,1758597046676,-952.95,0.00021109,2]
[387156551,1758597046685,-151.0,0.00021109,2]
[387156553,1758597046695,-151.0,0.00021109,2]
[387156555,1758597046704,-202.853329,0.00021109,2]
[387156557,1758597046714,-151.0,0.00021109,2]
[387156559,1758597046723,-151.0,0.00021109,2]
[387156560,1758597046733,-151.0,0.00021109,2]
[387156562,1758597046742,-158.649117,0.00021109,2]
[387156564,1758597046751,-151.0,0.00021109,2]
[387156566,1758597046760,-151.0,0.00021109,2]
[387156568,1758597046769,-186.713125,0.00021198,2]
[387156570,1758597046778,-151.0,0.00021198,2]
[387156572,1758597046788,-151.0,0.00021198,2]
[387156574,1758597046798,-151.0,0.00021198,2]
[387156576,1758597046807,-151.0,0.00021198,2]
[387156577,1758597046817,-233.58652103,0.00021246,2]
[387156578,1758597046826,-6607.89791529,0.00021246,2]
[387156579,1758597046835,-160.0,0.00021246,2]
[387156580,1758597046846,-160.0,0.00021246,2]
[387156581,1758597046855,-495.56293669,0.00021373,2]
[387156582,1758597046864,-366.19,0.00021373,2]
[387156583,1758597046874,-480.0,0.00021373,2]
[387156584,1758597046887,-720.21,0.00021373,2]
[387156585,1758597046897,-480.0,0.00021373,2]
[387156586,1758597046907,-480.0,0.00021373,2]
[387156587,1758597046916,-198.0,0.00021382,2]
[387156588,1758597046926,-480.0,0.00021382,2]
[387156589,1758597046936,-399.3,0.00021382,2]
[387156590,1758597046947,-151.0,0.00021383,2]
[387156591,1758597046957,-151.0,0.00021383,2]
[387156592,1758597046967,-952.95,0.00021383,2]
[387156593,1758597046977,-151.0,0.00021472,2]
[387156594,1758597046986,-480.0,0.00021647,2]
[387156595,1758597046995,-720.21,0.00021647,2]
[387156596,1758597047004,-480.0,0.00021647,2]
[387156597,1758597047014,-480.0,0.00021647,2]
[387156598,1758597047023,-151.0,0.00021647,2]
[387156599,1758597047032,-151.0,0.00021647,2]
[387156600,1758597047041,-151.0,0.00021647,2]
[387156601,1758597047050,-548.49,0.00021656,2]
[387156602,1758597047060,-952.95,0.00021657,2]
[387156603,1758597047072,-151.0,0.00021657,2]
[387156604,1758597047081,-151.0,0.00021657,2]
[387156605,1758597047090,-151.0,0.00021657,2]
[387156606,1758597047100,-246.285905,0.00021657,2]
[387156607,1758597047109,-151.0,0.00021657,2]
[387156608,1758597047118,-151.0,0.00021657,2]
[387156609,1758597047129,-161.09314728,0.00021657,2]
[387156610,1758597047139,-151.0,0.00021918,2]
[387156611,1758597047148,-152.173875,0.00021918,2]
[387156612,1758597047157,-151.0,0.00021918,2]
[387156613,1758597047166,-151.0,0.00021918,2]
[387156614,1758597047175,-151.0,0.00021918,2]
[387156615,1758597047183,-186.256938,0.00021918,2]
[387156616,1758597047192,-480.0,0.00021921,2]
[387156617,1758597047202,-720.21,0.00021921,2]
[387156619,1758597047211,-480.0,0.00021921,2]
[387156621,1758597047220,-496.1,0.00021921,2]
[387156622,1758597047229,-952.95,0.00021931,2]
[387156624,1758597047239,-1191.53,0.00021984,2]
[387156626,1758597047248,-1376.04637307,0.00022044,2]
[387156628,1758597047257,-241.03841,0.00022044,7]
[387156630,1758597047267,-480.0,0.00022195,2]
[387156632,1758597047277,-720.21,0.00022195,2]
[387156634,1758597047287,-432.34,0.00022195,2]
[387156636,1758597047296,-151.0,0.00022205,7]
[387156637,1758597047305,-177.15842792,0.00022205,7]
[387156638,1758597047314,-952.95,0.00022205,2]
[387156640,1758597047324,-151.0,0.00022349,7]
[387156641,1758597047333,-151.0,0.00022349,7]
[387156642,1758597047342,-151.0,0.00022349,7]
[387156643,1758597047351,-554.445,0.00022465,2]
[387156644,1758597047360,-482.59,0.00022469,2]
[387156647,1758597047462,-720.21,0.00022469,2]
[387156648,1758597047480,-151.0,0.00022469,7]
[387156650,1758597047489,-151.0,0.00022469,7]
[387156652,1758597047499,-151.0,0.00022469,7]
[387156654,1758597047508,-205.644781,0.00022469,7]
[387156655,1758597047517,-952.95,0.00022479,2]
[387156656,1758597047526,-248.0,0.00022493,2]
[387156657,1758597047535,-1581.412428,0.000225,2]
[387156658,1758597047544,-151.0,0.000225,7]
[387156659,1758597047554,-151.0,0.000225,7]
[387156660,1758597047563,-248.0,0.00022518,2]
[387156661,1758597047573,-248.0,0.00022714,2]
[387156662,1758597047582,-602.08003269,0.00022727,5]
[387156663,1758597047592,-720.21,0.00022743,2]
[387156664,1758597047601,-952.95,0.00022753,2]
[387156665,1758597047611,-248.0,0.00022807,2]
[387156666,1758597047620,-248.0,0.00022832,2]
[387156667,1758597047631,-248.0,0.00022839,2]
[387156668,1758597047640,-473.36069294,0.0002289,2]
[387156669,1758597047650,-248.0,0.00022905,2]
[387156670,1758597047660,-248.0,0.00022912,2]
[387156671,1758597047670,-100000.0,0.0002299,2]
[387156672,1758597047679,-151.0,0.0002299,7]
[387156673,1758597047688,-151.0,0.0002299,7]
[387156674,1758597047698,-151.0,0.0002299,7]
[387156675,1758597047707,-151.0,0.0002299,7]
[387156676,1758597047716,-151.0,0.0002299,7]
[387156677,1758597047726,-151.0,0.0002299,7]
[387156678,1758597047735,-151.0,0.0002299,7]
[387156679,1758597047744,-151.0,0.0002299,7]
[387156680,1758597047754,-151.0,0.0002299,7]
[387156681,1758597047763,-1000.0,0.00023,5]
[387156682,1758597047772,-248.0,0.00023004,2]
[387156683,1758597047782,-720.21,0.00023017,2]
[387156684,1758597047791,-952.95,0.00023027,2]
[387156685,1758597047800,-480.99462619,0.00023061,2]
[387156686,1758597047810,-160.0,0.00023071,2]
[387156687,1758597047819,-1376.04637307,0.00023116,2]
[387156688,1758597047828,-248.0,0.00023149,2]
[387156689,1758597047839,-248.0,0.00023153,2]
[387156690,1758597047848,-248.0,0.0002316,2]
[387156691,1758597047857,-248.0,0.00023179,2]
[387156692,1758597047867,-248.0,0.00023212,2]
[387156693,1758597047879,-500.47899947,0.00023236,2]
[387156694,1758597047889,-3067.73,0.00023287,2]
[387156695,1758597047899,-720.21,0.00023291,2]
[387156696,1758597047909,-952.95,0.00023301,2]
[387156697,1758597047918,-248.0,0.00023317,2]
[387156698,1758597047929,-500.81711892,0.00023331,2]
[387156699,1758597047938,-500.0,0.00023331,2]
[387156700,1758597047947,-503.69752148,0.00023331,2]
[387156701,1758597047957,-500.44189537,0.00023331,2]
[387156702,1758597047967,-248.0,0.00023349,2]
[387156703,1758597047976,-473.36069294,0.00023368,2]
[387156704,1758597047986,-248.0,0.0002337,2]
[387156705,1758597047995,-500.61675046,0.000234,2]
[387156706,1758597048004,-160.0,0.000234,7]
[387156707,1758597048014,-151.0,0.000234,7]
[387156708,1758597048023,-500.55991014,0.000234,2]
[387156709,1758597048033,-501.18761352,0.000234,2]
[387156710,1758597048042,-248.0,0.00023437,2]
[387156711,1758597048052,-160.0,0.00023474,5]
[387156712,1758597048062,-720.21,0.00023565,2]
[387156713,1758597048072,-952.95,0.00023575,2]
[387156714,1758597048082,-1628.06,0.000236,7]
[387156715,1758597048092,-248.0,0.00023711,2]
[387156716,1758597048102,-862.77,0.000238,10]
[387156717,1758597048111,-720.21,0.00023839,2]
[387156718,1758597048121,-473.36069294,0.00023845,2]
[387156719,1758597048131,-952.95,0.00023849,2]
[387156720,1758597048141,-517.18989171,0.00023879,2]
[387156721,1758597048151,-114240.81624214,0.000239,2]
[387156722,1758597048167,-6893.10439769,0.000239,2]
[387156723,1758597048177,-179.74835231,0.00023901,2]
[387156724,1758597048187,-978.0,0.00023915,2]
[387156725,1758597048196,-2159.0,0.00023915,2]
[387156726,1758597048205,-635.0,0.00023915,2]
[387156727,1758597048214,-248.0,0.00023922,2]
[387156728,1758597048224,-2383.07,0.00023983,2]
[387156729,1758597048234,-500.0,0.00024,10]
[387156730,1758597048246,-233.58652103,0.00024,7]
[387156731,1758597048256,-160.0,0.00024,10]
[387156732,1758597048265,-233.58652103,0.00024,10]
[387156733,1758597048274,-248.0,0.00024046,2]
[387156734,1758597048284,-410.0,0.00024053,2]
[387156735,1758597048294,-410.0,0.00024053,2]
[387156736,1758597048304,-160.0,0.00024057,6]
[387156737,1758597048314,-161.12526667,0.00024057,5]
[387156738,1758597048324,-720.21,0.00024113,2]
[387156739,1758597048333,-952.95,0.00024123,2]
[387156740,1758597048343,-1376.04637307,0.00024187,2]
[387156741,1758597048353,-473.36069294,0.00024323,2]
[387156742,1758597048362,-720.21,0.00024387,2]
[387156743,1758597048371,-952.95,0.00024397,2]
[387156744,1758597048383,-151.0,0.000245,10]
[387156745,1758597048392,-500.0,0.00024658,2]
[387156746,1758597048402,-720.21,0.00024661,2]
[387156747,1758597048411,-952.95,0.00024671,2]
[387156748,1758597048420,-183062.2375448,0.000248,5]
[387156749,1758597048430,-272.29195058,0.000248,2]
[387156750,1758597048439,-473.36069294,0.000248,2]
[387156751,1758597048449,-207.0,0.000249,2]
[387156752,1758597048459,-2000.0,0.000249,2]
[387156753,1758597048469,-71526.88144046,0.000249,2]
[387157393,1758597072029,300.0,0.00027397,120]
[387157413,1758597382828,300.0,0.00027397,120]
[387157414,1758597693133,300.0,0.00027397,120]
[387157418,1758598003496,300.0,0.00027397,120]
[387157432,1758598118842,645.47119075,0.00018,2]
[387157433,1758598122101,212.64792815,0.00016,2]
[387157434,1758598122601,3359.40445118,0.00013,2]
[387157464,1758598232368,-247.37483355,0.00019848,2]
[387157465,1758598232378,-352.98727035,0.000199,2]
[387157466,1758598232390,-10.02012053,0.000199,2]
[387157467,1758598232400,-212.47814486,0.000199,2]
[387157468,1758598232409,-480.0,0.00019989,2]
[387157469,1758598232418,-480.0,0.00019989,2]
[387157470,1758598232427,-480.0,0.00019989,2]
[387157471,1758598232439,-480.0,0.00019989,2]
[387157472,1758598232449,-480.0,0.00019989,2]
[387157473,1758598232459,-480.0,0.00019989,2]
[387157474,1758598232468,-480.0,0.00019989,2]
[387157475,1758598232477,-480.0,0.00019989,2]
[387157476,1758598232487,-480.0,0.00019989,2]
[387157477,1758598232497,-548.63,0.00019989,2]
[387157478,1758598232506,-480.0,0.00019989,2]
[387157479,1758598232515,-519.42,0.00019989,2]
[387157480,1758598232525,-480.0,0.00019989,2]
[387157481,1758598232535,-480.0,0.00019989,2]
[387157482,1758598232544,-498.80205079,0.00019989,2]
[387157483,1758598232554,-480.0,0.00019989,2]
[387157484,1758598232563,-494.15610208,0.00019989,2]
[387157485,1758598232573,-480.0,0.00019989,2]
[387157487,1758598232584,-399.64776656,0.00019989,2]
[387157488,1758598232594,-7445.37499522,0.00019989,2]
[387157489,1758598232603,-100000.0,0.0001999,2]
[387157490,1758598232612,-163.17625355,0.00020163,2]
[387157491,1758598232621,-153.32,0.00020263,2]
[387157492,1758598232630,-338.54,0.00020263,2]
[387157493,1758598232639,-322.21,0.00020263,2]
[387157494,1758598232648,-337.63539221,0.00020263,2]
[387157495,1758598232657,-480.0,0.00020263,2]
[387157496,1758598232667,-480.0,0.00020263,2]
[387157497,1758598232676,-480.0,0.00020263,2]
[387157498,1758598232686,-480.0,0.00020263,2]
[387157499,1758598232695,-425.86,0.00020263,2]
[387157500,1758598232705,-2070.52309462,0.00020437,2]
[387157501,1758598232715,-185.81,0.00020452,3]
[387157502,1758598232724,-154.85,0.00020452,3]
[387157503,1758598232733,-464.55,0.00020452,3]
[387157504,1758598232742,-487.79857209,0.00020461,2]
[387157505,1758598232752,-490.55436511,0.00020461,2]
[387157506,1758598232762,-480.0,0.00020461,2]
[387157507,1758598232771,-480.0,0.00020461,2]
[387157508,1758598232780,-500.07130705,0.00020461,2]
[387157509,1758598232790,-480.0,0.00020461,2]
[387157510,1758598232799,-366.23704783,0.00020461,2]
[387157511,1758598232812,-113.76295217,0.00020461,2]
[387157512,1758598232821,-495.14771699,0.00020461,2]
[387157513,1758598232830,-480.0,0.00020461,2]
[387157514,1758598232840,-491.17874272,0.00020461,2]
[387157515,1758598232849,-480.0,0.00020461,2]
[387157516,1758598232859,-480.0,0.00020461,2]
[387157517,1758598232868,-492.69313248,0.00020461,2]
[387157518,1758598232877,-161.25323314,0.00020461,2]
[387157544,1758598240307,-318.74676686,0.00020461,2]
[387157545,1758598240316,-514.90505813,0.00020461,2]
[387157546,1758598240325,-480.0,0.00020461,2]
[387157547,1758598240335,-623.02260778,0.00020461,2]
[387157548,1758598240344,-480.0,0.00020461,2]
[387157549,1758598240354,-480.0,0.00020461,2]
[387157551,1758598240363,-480.0,0.00020461,2]
[387157552,1758598240373,-480.0,0.00020461,2]
[387157553,1758598240383,-480.0,0.00020461,2]
[387157555,1758598240392,-480.0,0.00020461,2]
[387157556,1758598240401,-480.0,0.00020461,2]
[387157557,1758598240410,-480.0,0.00020461,2]
[387157558,1758598240419,-521.76642446,0.00020461,2]
[387157559,1758598240429,-480.0,0.00020461,2]
[387157560,1758598240438,-480.0,0.00020461,2]
[387157561,1758598240447,-480.0,0.00020461,2]
[387157562,1758598240457,-508.4,0.00020461,2]
[387157564,1758598240467,-480.0,0.00020461,2]
[387157566,1758598240476,-173.83133559,0.00020461,2]
[387157568,1758598240485,-480.0,0.00020461,2]